Cogmind - Beta 14 @@@ ROGUE MODE // 2024.08.31 @ 18:51:04 // Winter2022/Polymind Player: f3-rnm Result: Destroyed by Y-45 Defender with Heavy Assault Rifle Performance ------------- Evolutions (2) 1000 Regions Visited (8) 1600 Robots Destroyed (63) 315 Value Destroyed (2287) 2287 Prototype IDs (5) 100 Alien Tech Used (0) 0 Bonus (5332) 5332 TOTAL SCORE: 9974 Bonus ------- Polymind Skill 4486 Pacifist 200 High Alert Combat Kills 236 Follower Combat Kills 110 Aligned with FarCom 300 Cogmind --------- Core Integrity 0/550 Matter 100/100 Energy 215/215 System Corruption 5% Temperature Cool (33) Movement Treading (160) Location -8/Storage Parts ------- > --- POWER (1) -------- Improved Ion Engine > --- PROPULSION (2) --- Light Treads Light Treads > --- UTILITY (3) ------ Heat Sink Heat Sink > --- WEAPON (2) ------- Beam Rifle Heavy Assault Rifle > --- INVENTORY (1) ---- (None) Peak State ------------ > --- POWER ------------ Heavy Deuterium Engine > --- PROPULSION ------- Combat Antigrav System > --- UTILITY ---------- Advanced Launcher Guidance Computer Improved Target Analyzer Experimental Core Analyzer Improved Armor Integrity Analyzer EX Chip 1 EX Chip 1 EX Chip 1 EX Chip 1 EX Chip 1 EX Chip 1 EX Chip 1 EX Chip 1 EX Chip 1 EX Chip 1 EX Chip 2 EX Chip 2 EX Chip 2 EX Chip 2 EX Chip 2 EX Chip 2 EX Chip 2 EX Chip 2 > --- WEAPON ----------- AWS/EX-DEC > --- INVENTORY -------- Deploy-a-Sentry [Rating: 99] Favorites ----------- Power Heavy Deuterium Engine Engine Heavy Deuterium Engine Propulsion Combat Antigrav System Treads Light Treads Hover Unit Combat Antigrav System Flight Unit Flight Unit Utility EX Chip 1 Device Heat Sink Processor Advanced Launcher Guidance Computer Hackware EX Chip 1 Protection Light Armor Plating Weapon AWS/EX-DEC Energy Gun AWS/EX-DEC Ballistic Gun Light Assault Rifle Build | -11 -10 -10 -9 -9 -9 -8 -8 -8 ------- Run | Yrd Mat Min Mat Min Exi Min Mat Sto Slots Evolved . | . . . . . . . . . Power . | . . . . . . . . . Propulsion . | . . . . . . . . . Utility . | . . . . . . . . . Weapon . | . . . . . . . . . Parts Attached . | . . . . . . . . . Power . | . . . . . . . . . Engine . | . . . . . . . . . Core . | . . . . . . . . . Reactor . | . . . . . . . . . Propulsion . | . . . . . . . . . Treads . | . . . . . . . . . Leg . | . . . . . . . . . Wheel . | . . . . . . . . . Hover . | . . . . . . . . . Flight . | . . . . . . . . . Utility . | . . . . . . . . . Device . | . . . . . . . . . Storage . | . . . . . . . . . Processor . | . . . . . . . . . Hackware . | . . . . . . . . . Protection . | . . . . . . . . . Artifact . | . . . . . . . . . Weapon . | . . . . . . . . . Energy Gun . | . . . . . . . . . Energy Cannon . | . . . . . . . . . Ballistic Gun . | . . . . . . . . . Ballistic Cannon . | . . . . . . . . . Launcher . | . . . . . . . . . Special Weapon . | . . . . . . . . . Impact Weapon . | . . . . . . . . . Slashing Weapon . | . . . . . . . . . Piercing Weapon . | . . . . . . . . . Special Melee Weapon . | . . . . . . . . . Unidentified Prototypes . | . . . . . . . . . Parts Lost 12 | . . . . . . . 1 11 Power 1 | . . . . . . . . 1 Propulsion 2 | . . . . . . . . 2 Utility 6 | . . . . . . . 1 5 Weapon 3 | . . . . . . . . 3 Highest Loss Streak 8 | . . . . . . . 1 8 To Critical Strikes . | . . . . . . . . . Average Slot Usage (%) 91 | . . . 33 100 92 96 95 77 Engine 7 | . . . 8 25 9 3 3 4 Hover 1 | . . . . . 2 3 3 . Flight 9 | . . . 16 50 14 . . . Processor 11 | . . . . . 10 15 15 10 Hackware 50 | . . . . . 46 69 68 43 Energy Gun 2 | . . . . . 2 3 3 4 Ballistic Gun 4 | . . . 8 25 7 . . 1 Peak Build Rating 99 | . . . 4 4 99 99 99 97 Average Rating 73 | . . . 1 4 68 99 98 63 On Entrance 33 | . . . . 4 4 99 99 97 Naked Turns 177 | . 18 55 40 . 6 . . 58 Heaviest Build 21 | . . . 4 4 21 21 21 21 Greatest Support 40 | 3 3 3 8 8 21 21 21 40 Greatest Overweight (x) 2 | . . . . . . . . 2 Average Overweight (x) . | . . . . . . . . . Largest Inventory Capacity 2 | . . . . . 2 2 2 2 Average Capacity 1 | . . . . . 1 2 2 1 Most Carried 2 | . . . . . 1 1 1 2 Average Carried . | . . . . . . 1 . 1 Final Capacity 2 | . . . . . 2 2 2 1 Final Carried 1 | . . . . . 1 1 . . Class Distribution -------------------- 74% | Thief 18% | Swarmer 3% | Cogmind 3% | Sentry Dominant Class ---------------- Cogmind | -10/Materials Cogmind | -10/Mines Cogmind | -9/Materials Swarmer | -9/Mines Thief | -9/Exiles Thief | -8/Mines Thief | -8/Materials Thief | -8/Storage Resources | -11 -10 -10 -9 -9 -9 -8 -8 -8 ----------- Run | Yrd Mat Min Mat Min Exi Min Mat Sto Matter Collected 34 | . . . . 19 . . . 15 Remotely . | . . . . . . . . . Salvage Created 2819 | . . . . 99 . 260 1810 650 Parts 149 | . . . . 6 . 16 100 27 Haulers Intercepted 1 | . . . . . . . 1 . Recyclers Shooed . | . . . . . . . . . Parts Field Recycled . | . . . . . . . . . Retrieved Matter . | . . . . . . . . . Parts Self-Destructed . | . . . . . . . . . Prevented . | . . . . . . . . . Kills | -11 -10 -10 -9 -9 -9 -8 -8 -8 ------- Run | Yrd Mat Min Mat Min Exi Min Mat Sto Combat Hostiles Destroyed 56 | . . . . 2 . 10 33 11 Guns 48 | . . . . 2 . 9 29 8 AOE 2 | . . . . . . 1 1 . Classes Destroyed 9 | . . . . 2 . 3 3 1 Hauler 1 | . . . . . . . 1 . Operator 1 | . . . . . . . 1 . Watcher 5 | . . . . . . . 4 1 Swarmer 16 | . . . . 1 . 6 9 . Grunt 24 | . . . . . . 2 15 7 Brawler 1 | . . . . . . . . 1 Duelist 1 | . . . . . . 1 . . Sentry 11 | . . . . 1 . . 7 3 Hunter 3 | . . . . . . 1 2 . Best Kill Streak 6 | . . . . 1 . 6 5 5 Combat Bots Only 6 | . . . . 1 . 6 5 5 Max Kills in Single Turn 2 | . . . . 1 . 1 2 1 Gunslinging . | . . . . . . . . . Exploded 1 | . . . . . . 1 1 . Melee . | . . . . . . . . . Uniques/NPCs Destroyed . | . . . . . . . . . Combat | -11 -10 -10 -9 -9 -9 -8 -8 -8 -------- Run | Yrd Mat Min Mat Min Exi Min Mat Sto Hostile Shots Fired 211 | . . 1 8 10 . 16 50 126 Missed 70 | . . 1 4 6 . 8 24 27 Damage Taken 2123 | . . . 33 47 34 77 329 1603 Core 620 | . . . 33 23 8 . 102 454 Absorbed by Shields . | . . . . . . . . . Regen/Repaired (Parts) 51 | . . . . . . . 51 . Core Remaining (%) 94 | 100 . 100 . . . 84 . . Volleys Fired 17 | . . . . 14 . . . 3 Largest 2 | . . . . 1 . . . 2 Hottest 79 | . . . . 20 . . . 79 Shots Fired 154 | . . . . 14 . 23 74 43 Gun 154 | . . . . 14 . 23 74 43 Cannon . | . . . . . . . . . Launcher . | . . . . . . . . . Special . | . . . . . . . . . Kinetic 17 | . . . . 14 . . . 3 Thermal 3 | . . . . . . . . 3 Explosive . | . . . . . . . . . Electromagnetic 134 | . . . . . . 23 74 37 Robot Hit Streak 25 | . . . . 5 . 8 25 25 Robot Miss Streak 4 | . . . . 1 . 2 4 3 Penetration Max . | . . . . . . . . . Secondary Targets 1 | . . . . . . . . 1 Max Gunslinging Chain 1 | . . . . . . . . 1 Autonomous 134 | . . . . . . 23 74 37 Shots Hit Robots 142 | . . . . 10 . 21 72 39 Core Hits 99 | . . . . 6 . 14 59 20 Critical Kills . | . . . . . . . . . Critical Parts Destroyed . | . . . . . . . . . Critical Strikes 12 | . . . . . . 2 8 2 Burn 1 | . . . . . . . . 1 Corrupt 11 | . . . . . . 2 8 1 Melee Attacks . | . . . . . . . . . Impact . | . . . . . . . . . Slashing . | . . . . . . . . . Piercing . | . . . . . . . . . Sneak Attacks . | . . . . . . . . . Combat Hostiles . | . . . . . . . . . Follow-up Attacks . | . . . . . . . . . Damage Inflicted 3778 | . . . . 83 26 534 1987 1148 Guns 3524 | . . . . 83 . 443 1889 1109 Cannons . | . . . . . . . . . Explosions 219 | . . . . . . 91 98 30 Melee . | . . . . . . . . . Ramming 35 | . . . . . 26 . . 9 Kinetic 114 | . . . . 83 . . . 31 Thermal 264 | . . . . . . 91 98 75 Explosive . | . . . . . . . . . Electromagnetic 3365 | . . . . . . 443 1889 1033 Impact . | . . . . . . . . . Slashing . | . . . . . . . . . Piercing . | . . . . . . . . . Highest Corruption 5 | . 4 4 . . . . . 5 Average Corruption 4 | . 3 4 . . . . . 5 Corruption Purged . | . . . . . . . . . Corruption Blocked . | . . . . . . . . . Effects 1 | . . . . . . . . 1 Energy Discharges 1 | . . . . . . . . 1 Overload Shots . | . . . . . . . . . Overflow Damage . | . . . . . . . . . Projectiles . | . . . . . . . . . Explosions . | . . . . . . . . . Melee . | . . . . . . . . . Knockbacks . | . . . . . . . . . Impact . | . . . . . . . . . Kinetic . | . . . . . . . . . Secondary . | . . . . . . . . . Self-Inflicted Damage 74 | . . . . . 26 . . 48 Shots 1 | . . . . . . . . 1 Rammed 3 | . . . . . . . . 3 Targets Rammed 3 | . . . . . . . . 3 Kicked . | . . . . . . . . . Crushed . | . . . . . . . . . Highest Temperature 24 | . . . . 23 . 5 22 24 Average Temperature 9 | . . . . 10 . 5 6 9 Received Heat Transfer 891 | . . . . 9 . 9 108 765 Siege Activations . | . . . . . . . . . Robots Corrupted 7 | . . . . . . . 3 4 Combat Hostiles 6 | . . . . . . . 3 3 Parts Fried 16 | . . . . . . 1 7 8 Impact Corruptions . | . . . . . . . . . Robots Melted . | . . . . . . . . . Combat Hostiles . | . . . . . . . . . Parts Melted . | . . . . . . . . . Heat Transferred 435 | . . . . . . 100 100 235 Parts Sabotaged . | . . . . . . . . . Parts Stolen . | . . . . . . . . . Parts Stripped . | . . . . . . . . . Power Chain Reactions 4 | . . . . . . 1 2 1 Alert | -11 -10 -10 -9 -9 -9 -8 -8 -8 ------- Run | Yrd Mat Min Mat Min Exi Min Mat Sto Peak Influence 772 | . . 15 19 239 . 263 621 772 Initial 242 | . . . 5 7 . . 102 242 Average 302 | . . 12 4 28 . 221 377 437 Maximum Alert Level 3 | . . . . 1 . 1 2 3 Low Security (%) 24 | 100 100 100 100 96 . 36 3 . Level 1 40 | . . . . 3 . 63 53 32 Level 2 34 | . . . . . . . 43 63 Level 3 . | . . . . . . . . 3 Level 4 . | . . . . . . . . . Level 5 . | . . . . . . . . . High Security . | . . . . . . . . . Max Security . | . . . . . . . . . Squads Dispatched 15 | . . 1 2 . . . 10 2 Investigation 9 | . . 1 1 . . . 7 . Extermination . | . . . . . . . . . Reinforcement 6 | . . . 1 . . . 3 2 Assault . | . . . . . . . . . Garrison . | . . . . . . . . . Intercept . | . . . . . . . . . Searches Triggered . | . . . . . . . . . Construction Impeded . | . . . . . . . . . Haulers Reinforced . | . . . . . . . . . Active Scanning Responses . | . . . . . . . . . Cargo Convoy Interrupts . | . . . . . . . . . Stealth | -11 -10 -10 -9 -9 -9 -8 -8 -8 --------- Run | Yrd Mat Min Mat Min Exi Min Mat Sto Distress Signals 2 | . . . . . . . . 2 Communications Jammed . | . . . . . . . . . Distress Signals . | . . . . . . . . . Times Spotted 112 | . . 3 3 5 1 9 42 49 Peak Tracking Total 10 | . . 3 3 3 9 3 5 10 Tactical Retreats 11 | . . . . . . . 1 10 Traps | -11 -10 -10 -9 -9 -9 -8 -8 -8 ------- Run | Yrd Mat Min Mat Min Exi Min Mat Sto Traps Triggered 7 | . 2 . 1 . . . 2 2 Indirectly . | . . . . . . . . . Trap Hack Attempts . | . . . . . . . . . Triggered . | . . . . . . . . . Disarmed . | . . . . . . . . . Reprogrammed . | . . . . . . . . . Reused . | . . . . . . . . . Traps Extracted . | . . . . . . . . . Installed . | . . . . . . . . . Triggered . | . . . . . . . . . Machines | -11 -10 -10 -9 -9 -9 -8 -8 -8 ---------- Run | Yrd Mat Min Mat Min Exi Min Mat Sto Machines Disabled 6 | . . . . . 1 . 3 2 Max in Single Turn 2 | . . . . . 1 . 1 2 Machines Repaired . | . . . . . . . . . Machines Dismantled . | . . . . . . . . . Machines Sabotaged 1 | . . . . . . . 1 . Overloaded Fab Kills . | . . . . . . . . . Hacking | -11 -10 -10 -9 -9 -9 -8 -8 -8 --------- Run | Yrd Mat Min Mat Min Exi Min Mat Sto Machines Accessed 10 | . . 1 . . . . 8 1 Terminals 7 | . . . . . . . 6 1 Fabricators . | . . . . . . . . . Repair Stations 2 | . . . . . . . 2 . Recycling Units . | . . . . . . . . . Scanalyzers . | . . . . . . . . . Garrison Access . | . . . . . . . . . Total Hacks 24 | . . 1 . . . . 22 1 Successful 24 | . . 1 . . . . 22 1 Failed . | . . . . . . . . . Catastrophic . | . . . . . . . . . Database Lockouts . | . . . . . . . . . Manual 7 | . . . . . 1 . 6 . Terminals 21 | . . . . . . . 20 1 Fabricators . | . . . . . . . . . Repair Stations 2 | . . . . . . . 2 . Recycling Units . | . . . . . . . . . Scanalyzers . | . . . . . . . . . Garrison Access . | . . . . . . . . . Terminal Hacks 19 | . . 1 . . . . 17 1 Record 1 | . . . . . . . 1 . Prototype ID Bank 1 | . . . . . . . 1 . Open Door 2 | . . 1 . . . . . 1 Branch Access Points 1 | . . . . . . . 1 . Alert Level 3 | . . . . . . . 3 . Dispatch Records 1 | . . . . . . . 1 . Surveillance Status 1 | . . . . . . . 1 . Transport Status 2 | . . . . . . . 2 . Investigation Status 2 | . . . . . . . 2 . Recall Investigation 2 | . . . . . . . 2 . Hauler Manifests 1 | . . . . . . . 1 . Registered Prototypes 1 | . . . . . . . 1 . Zone Layout 1 | . . . . . . . 1 . Fabricator Hacks . | . . . . . . . . . Repair Station Hacks . | . . . . . . . . . Recycling Unit Hacks . | . . . . . . . . . Scanalyzer . | . . . . . . . . . Garrison Access Hacks . | . . . . . . . . . Unauthorized Hacks 5 | . . . . . . . 5 . Terminals 3 | . . . . . . . 3 . Sabotage 3 | . . . . . . . 3 . Fabricators . | . . . . . . . . . Repair Stations 2 | . . . . . . . 2 . Patch 2 | . . . . . . . 2 . Recycling Units . | . . . . . . . . . Scanalyzers . | . . . . . . . . . Garrison Access . | . . . . . . . . . Data Cores Recovered 1 | . . . . . . . 1 . Used . | . . . . . . . . . Hacking Detections 2 | . . . . . . . 2 . Full Trace Events . | . . . . . . . . . Feedback Events . | . . . . . . . . . Feedback Blocked . | . . . . . . . . . Robot Schematics Acquired . | . . . . . . . . . Robots Built . | . . . . . . . . . Authchips . | . . . . . . . . . Time . | . . . . . . . . . Total Robot Build Rating . | . . . . . . . . . Part Schematics Acquired . | . . . . . . . . . Parts Built . | . . . . . . . . . Authchips . | . . . . . . . . . Time . | . . . . . . . . . Total Part Build Rating . | . . . . . . . . . Parts Repaired . | . . . . . . . . . Time . | . . . . . . . . . Parts Recycled . | . . . . . . . . . Recycled Matter . | . . . . . . . . . Retrieved Matter . | . . . . . . . . . Retrieved Components . | . . . . . . . . . Parts Scanalyzed . | . . . . . . . . . Part Schematics Acquired . | . . . . . . . . . Parts Damaged . | . . . . . . . . . Bothacking | -11 -10 -10 -9 -9 -9 -8 -8 -8 ------------ Run | Yrd Mat Min Mat Min Exi Min Mat Sto Used RIF Installer . | . . . . . . . . . Robots Hacked 3 | . . . 1 . . . . 2 Non-combat . | . . . . . . . . . Combat 3 | . . . 1 . . . . 2 Robot Hacks Applied 5 | . . . 1 . . . . 4 find_shortcuts 3 | . . . 1 . . . . 2 find_garrison 2 | . . . . . . . . 2 Relay Couplers Released . | . . . . . . . . . Fabnet Peak Effective % . | . . . . . . . . . Robots Rewired . | . . . . . . . . . Allies Hacked . | . . . . . . . . . Hacks Repelled . | . . . . . . . . . Allies | -11 -10 -10 -9 -9 -9 -8 -8 -8 -------- Run | Yrd Mat Min Mat Min Exi Min Mat Sto Total Allies 4 | . . . . 4 . . . . Largest Group 4 | . . . . 4 . . . . Highest-Rated Group 71 | . . . . 71 . . . . Highest-Rated Ally 31 | . . . . 31 . . . . Total Orders . | . . . . . . . . . Ally Attacks 36 | . . . . 32 . . 4 . Total Damage 511 | . . . . 334 . . 177 . Kills 9 | . . . . 8 . . 1 . Allies Corrupted . | . . . . . . . . . Allies Melted . | . . . . . . . . . Turrets Deployed 1 | . . . . . . . 1 . Intel | -11 -10 -10 -9 -9 -9 -8 -8 -8 ------- Run | Yrd Mat Min Mat Min Exi Min Mat Sto Robot Analysis Total 2 | . . . 1 . . . . 1 Derelict Logs Recovered 2 | . . . . 2 . . . . Drone Launches . | . . . . . . . . . Drone Recoveries . | . . . . . . . . . Exploration | -11 -10 -10 -9 -9 -9 -8 -8 -8 ------------- Run | Yrd Mat Min Mat Min Exi Min Mat Sto Turns Passed 4699 | 9 18 55 64 773 216 351 2520 693 Spaces Moved 3990 | 18 35 63 131 787 364 377 1767 448 Core 451 | 18 35 63 72 . 10 . . 253 Treads 90 | . . . . . . . . 90 Legs . | . . . . . . . . . Wheels . | . . . . . . . . . Hover 2432 | . . . . . 183 377 1767 105 Flight 1017 | . . . 59 787 171 . . . Fastest Speed 37 | 50 50 50 37 37 37 80 80 50 Average Speed 72 | 50 50 50 44 37 58 80 80 120 Slowest Speed 160 | 50 50 50 50 37 80 80 80 160 Overloaded Moves . | . . . . . . . . . Propulsion Burnouts . | . . . . . . . . . Robots Hopped 2 | . . . . . . . 2 . Cave-ins Triggered . | . . . . . . . . . Exploration Rate (%) 49 | 3 15 18 16 85 75 85 86 66 Regions Visited 8 Branch Regions 5 Pre-discovered Areas 1 | . . . . 1 . . . . Known Exits Taken 1 | . . . . . . . 1 . Unknown Exits Taken 7 | 1 1 1 1 1 1 1 . . Scrap Searched 2 | . . . . 1 . 1 . . Spaces Dug . | . . . . . . . . . Terrain Destroyed 18 | . . . . . . 8 8 2 Melee . | . . . . . . . . . Projectile . | . . . . . . . . . AOE 18 | . . . . . . 8 8 2 Terrain Rammed 1 | . . . . . 1 . . . Walls Destroyed . | . . . . . . . . . Machines Disabled 1 | . . . . . 1 . . . Actions | -11 -10 -10 -9 -9 -9 -8 -8 -8 --------- Run | Yrd Mat Min Mat Min Exi Min Mat Sto Total 5784 | 17 34 85 136 1256 365 426 2872 593 Wait 1778 | . . 23 6 456 1 50 1105 137 Move 3978 | 17 34 62 130 786 363 376 1762 448 Hop 2 | . . . . . . . 2 . Pick Up 3 | . . . . . . . 1 2 Fast Attach . | . . . . . . . . . Attach . | . . . . . . . . . Detach . | . . . . . . . . . Swap . | . . . . . . . . . Drop 2 | . . . . . . . 2 . Fire 17 | . . . . 14 . . . 3 Melee . | . . . . . . . . . Ram 4 | . . . . . 1 . . 3 Kick . | . . . . . . . . . Crush . | . . . . . . . . . Escape Stasis . | . . . . . . . . . Rewire . | . . . . . . . . . Trap . | . . . . . . . . . Miscellaneous . | . . . . . . . . . Route ------- -11/Scrapyard -10/Materials -10/Mines -9/Materials -9/Mines (discovered 3 exits: *Mat x2 / *Exi) -9/Exiles -8/Mines -8/Materials (discovered 5 exits: [*Fac x3] / *Sto x2) -8/Storage (discovered 1 exit: [*Fac]) History --------- Turn | Location | Event 3 | -11/Scrapyard | Discovered new exit (range 15) 10 | -11/Scrapyard | Entered Materials 23 | -10/Materials | Discovered new exit (range 9) 28 | -10/Materials | Entered Mines 34 | -10/Mines | Discovered new exit (range 13) 47 | -10/Mines | Met a Derelict shopkeep closing up shop 83 | -10/Mines | Entered Materials 143 | -9/Materials | Discovered new exit (range 12) 147 | -9/Materials | Entered Mines 149 | -9/Mines | Assisted by bots powering up and referring to "LRC-V3" 180 | -9/Mines | Received a Rocket Launcher from a helpful Derelict 271 | -9/Mines | Received a Mining Laser from a helpful Derelict 316 | -9/Mines | Deemed a non-threat by the Exiles lab entrance 504 | -9/Mines | Discovered new exit (range 15) 526 | -9/Mines | Joined a pair of Derelicts in attacking an 0b10 outpost 570 | -9/Mines | Discovered new exit (range 13) 591 | -9/Mines | Learned location of Zion (-6) 653 | -9/Mines | Discovered new exit (range 5) 920 | -9/Mines | Entered Exiles 929 | -9/Exiles | Met 8R-AWN 935 | -9/Exiles | Met EX-HEX 947 | -9/Exiles | Met EX-BIN 953 | -9/Exiles | Aligned with FarCom system 953 | -9/Exiles | Given EX-Vault access code 962 | -9/Exiles | Opened EX-Vault 969 | -9/Exiles | Warned to stay clear of 0b10 Research branches 979 | -9/Exiles | Met EX-DEC 990 | -9/Exiles | Took control of EX-DEC (ally) 1012 | -9/Exiles | Visited The Gauntlet 1067 | -9/Exiles | Discovered new exit (range 11) 1107 | -9/Exiles | Attacked by the Exiles 1136 | -9/Exiles | Left Exiles lab with Deploy-a-Sentry 1136 | -9/Exiles | Entered Mines 1479 | -8/Mines | Discovered new exit (range 12) 1487 | -8/Mines | Entered Materials 1488 | -8/Materials | Identified exit to Storage 1769 | -8/Materials | Discovered new exit (range 8) 2161 | -8/Materials | Found Deploy-a-Sentry 2258 | -8/Materials | DAS Turret deployed 3396 | -8/Materials | Discovered new exit (range 7) 3547 | -8/Materials | Discovered new exit (range 3) 4007 | -8/Materials | Entered Storage 4479 | -8/Storage | Core integrity fell below 50% 4493 | -8/Storage | Discovered new exit (range 15) 4507 | -8/Storage | Lost 3 parts (2u1w) 4667 | -8/Storage | Core integrity fell below 20% 4696 | -8/Storage | Lost 8 parts (1p2n3u2w) 4700 | -8/Storage | Destroyed by Y-45 Defender with Heavy Assault Rifle Last Messages --------------- 04664_ Slammed into Y-45 Defender. 04664_ Destabilizing: System interference. 04664_ Heat Sink temporarily disabled. 04665_ Slammed into Y-45 Defender. 04665_ Heat Sink destroyed. 04665_ Lost control of Y-45 Defender. 04665_ System corrupted by crushing effect (+5). 04666_ Took control of Y-45 Defender. 04677_ Triggered Blade Trap. 04677_ Massive razor-sharp blades shoot up from within the floor. 04677_ Lgt. Armor Plating severed. 04678_ System corrupted: Energy discharge (-47). 04679_ O-16 Technician: "IFF HANDSHAKE FAILED. SECURING TERMINAL." 04684_ ALERT: Hostiles spotted, dispatching reinforcements to Terminal S009. 04690_ G-50 Soldier suffers critical hit (Burn). 04693_ G-50 Soldier destroyed. 04693_ Switching to secondary target: Y-45 Defender. 04696_ Acquired 12 matter. 04698_ Acquired 3 matter. Map ----- +----------------------------------------------------+ | ??????????????????????????### #?????????# | | ????????????????????????????# """" #?????????# | | ????????????????????????????# "???" #?????????# | | ????????????????????????????# "????" #?????????# | | ????????????????????????????# ""???? #?????????# | | ?????????????????????? ?????# ""???? #?????????# | | ????????????????????##+###### """" #?????????# | | ?????????????######## / #?????????# | | ?????????????# ] # ################?????????# | | ?????????????# | # #???????????############## | | ?????????????# # #??????????? | | ?????????????# # ######?????? | | ?????????????# = + | | ?????????????# # ######???????#+########## | | ?????????????# # #???????????????????????# | | ?????????????# %# #???????????????????????# | | ?????????????# # #???????????????????????# | | ?????????????# ! # #??????????????????###### | | ?????????????# [# #??????????????????+ | | ?????????????+ %+ ###########????????###### | | ?????????????# #a ## #?????????????# | | ?????????????######## ## """ #?????????????# | | ???????????######### # """ #?????????????# | | ???????# Y# """ #???########### | | ???????# ;Y #???# + | | ???????# ########## #Yg""" #???# # | | ???????????????????######= """ #???# # | | ????????????????????????# Y""" #???# ?# | | ????????????????????????# ???##+###+##?# | | ????????????????????????##########????#!## ### | | ????????????????????????????###???????#[% | | ????????????????????????????#!#???????# ## ##### | | ????????????????????????????# ##??????# ###+####?# | | ????????????????????????????# T#??????# + #?# | | ????????????????????????????#+##??????# # !!!#?? | | ????????????????????????????# #???????# # !! ### | | ????????????????????????????# #???????# #? !! # | | ????????????????????????????# ######### #?? # | | ????????????????????????????# #??? # | | ????????????????????????????# ##??"### | | ????????????????????????????# ####### | | ????????????????????????????# + | | ????????????????????????????# ####### | | ????????????????????????????###########+##?????### | | ?????????????????????????????????????????????????# | | ?????????????????????????????????????????????????# | | ?????????????????????????????????????????????????# | | ?????????????????????????????????????????????????# | | ?????????????????????????????????????????????????# | | ?????????????????????????????????????????????????? | +----------------------------------------------------+ Best States ------------- Heat Dissipation 36 Energy Generation 23 Energy Capacity 235 Matter Stores 100 Matter Capacity 100 Sight Range 16 Terrain Scan Density 10 Armor Coverage 150 Resistance: EX 50 Resistance: EM 90 Resistance: I 25 Evasion (%) 62 Launcher Accuracy 40 Target Analysis 6 Core Analysis 8 Armor Integrity Analysis 40 Recoil Reduction 2 Offensive Hacking 70 Defensive Hacking 56 Item Schematics ----------------- None Robot Schematics ------------------ None Fabricated ------------ Nothing Alien Tech Used ----------------- None Achievements -------------- None Challenges ------------ None Polymind | -11 -10 -10 -9 -9 -9 -8 -8 -8 ---------- Run | Yrd Mat Min Mat Min Exi Min Mat Sto Hosts 4 | . . . 1 . 1 . . 2 Combat Hostiles 3 | . . . 1 . . . . 2 Allies 1 | . . . . . 1 . . . Unique Host Classes 3 | . . . 1 . 1 . . 1 Average Host Suspicion 91 | . . . 25 90 . 99 97 92 Unsuspicious Activity 36 | . . . 3 . 16 . . 17 Returns to Shadow . | . . . . . . . . . Fuzzy Dispatches . | . . . . . . . . . Protomatter Created 282 | . . 21 3 40 4 44 98 72 Used 85 | . . . 6 . 33 . . 46 Decayed 29 | . . . . 29 . . . . Highest Spend 33 | . . . 6 . 33 . . 23 Top 5 Hosts by Kills: EX-DEC (-9/Exiles: 53) S-10 Pest (-9/Materials: 2) Y-45 Defender (-8/Storage: 1) Game ------ Seed CarbideFlyingExoskeleton Manual? 0 Play Time 00:25:13 Cumulative 246.0 hours Start 2024.08.31 @ 18:23:57 End 2024.08.31 @ 18:51:04 Sessions 1 Manual Loads 0 Difficulty Rogue Special Mode Winter2022/Polymind Game No. 257 Rogue 221 Adventurer 36 Explorer 0 Win Type - Total 10 Types 3/0/7/0/0/0/0/0/0 Lore% 62 Gallery% 82 Achievement% 72 Wizard Run 0 Options --------- Layout 0 ASCII 0 Keyboard 0 Movement Mouse Keybinds 0 Fullscreen 1 Font 18/SmallcapsGlow Map View 76x50 Zoom Use 0% Tactical HUD 1 Map Filters NONE Filters NONE Steam 1 RUN: 9d190807-72ef-448e-ad1d-30cd70f263af